bitfinex/quotes_BTCUSD_20220307
["timestamp","ask_amount","ask_price","bid_price","bid_amount"]
[1646682901916,0.01339,37322.0,37317.0,0.20419441]
[1646682902116,0.11339,37327.0,37319.0,0.409198]
[1646682902316,0.01339,37328.0,37325.0,0.2491968]
[1646682902514,0.01339,37328.0,37326.0,0.409198]
[1646682902715,0.1,37334.0,37332.0,0.20551869]
[1646682902716,0.01339,37333.0,37332.0,0.20551869]
[1646682902918,0.01339,37333.0,37332.0,0.95598413]
[1646682903113,0.01339,37343.0,37333.0,0.409198]
[1646682903315,0.01339,37344.0,37334.0,0.34126744]
[1646682903512,0.15,37344.0,37334.0,0.34126744]
[1646682903716,0.06699827,37340.0,37327.0,0.1]
[1646682903914,0.01339,37339.0,37328.0,0.75046544]
[1646682904111,0.06699827,37340.0,37328.0,0.40160375]
[1646682904311,0.06699827,37340.0,37327.0,0.1]
[1646682904511,0.21699827,37340.0,37332.0,0.31175904]
[1646682904715,0.21699827,37340.0,37327.0,0.23619086]
[1646682904914,0.067007,37339.0,37327.0,0.23619086]
[1646682905116,0.21701359,37336.0,37325.0,0.1]
[1646682905372,0.409049,37335.0,37321.0,0.45465744]
[1646682905575,0.72852037,37335.0,37321.0,0.1]
[1646682905771,0.409049,37331.0,37320.0,0.1]
[1646682905969,0.404049,37331.0,37320.0,0.1]
[1646682906270,0.06703108,37328.0,37319.0,0.25611779]
[1646682906472,0.067033,37326.0,37319.0,0.25611779]
[1646682906674,0.74966486,37325.0,37312.0,0.01339]
[1646682906872,0.74966486,37325.0,37311.0,3.24817823]
[1646682906873,0.409102,37322.0,37311.0,3.24817823]
[1646682907269,0.459102,37322.0,37311.0,3.24817823]
[1646682907469,0.067046,37319.0,37311.0,3.51755399]
[1646682907671,0.409102,37318.0,37314.0,0.29935799]
[1646682907870,0.067046,37319.0,37314.0,0.29935799]
[1646682908075,0.47614444,37318.0,37314.0,0.29935799]
[1646682908270,0.11704244,37318.0,37314.0,0.29935799]
[1646682908671,0.06704244,37318.0,37314.0,0.29935799]
[1646682908870,0.05,37317.0,37305.0,0.02629]
[1646682909111,0.05,37317.0,37304.0,0.22604461]
[1646682909112,0.067049,37316.0,37304.0,0.22604461]
[1646682909311,0.067049,37316.0,37305.0,0.1697376]
[1646682909510,0.06704938,37314.0,37305.0,0.1697376]
[1646682909727,0.409102,37313.0,37300.0,0.0999]
[1646682909921,0.15,37310.0,37301.0,0.32612583]
[1646682910112,0.067072,37308.0,37294.0,1.247]
[1646682910314,0.54324471,37309.0,37294.0,0.4998]
[1646682910315,0.26828171,37309.0,37294.0,0.4998]
[1646682910514,0.06707136,37308.0,37295.0,0.476163]
[1646682910715,0.06707136,37308.0,37299.0,0.409102]
[1646682910913,0.06707136,37308.0,37300.0,0.409102]
[1646682911210,0.06707136,37308.0,37299.0,0.409102]
[1646682911410,0.06707136,37308.0,37305.0,0.2701749]
[1646682912013,0.05,37309.0,37305.0,0.2701749]
[1646682912014,0.05,37309.0,37306.0,0.409102]
[1646682912219,0.05,37310.0,37306.0,0.459102]
[1646682912421,0.2341,37322.0,37314.0,0.19996432]
[1646682912422,0.1,37322.0,37314.0,0.19996432]
[1646682912871,0.1,37322.0,37316.0,0.26459848]
[1646682912872,0.409102,37322.0,37316.0,0.26459848]
[1646682913065,0.06703395,37322.0,37320.0,0.21987315]
[1646682913270,0.01339,37325.0,37316.0,0.26459848]
[1646682913566,0.01339,37326.0,37317.0,0.74966486]
[1646682913767,0.1,37331.0,37317.0,0.74966486]
[1646682913964,0.01339,37330.0,37324.0,0.26897094]
[1646682914187,0.01339,37331.0,37324.0,0.26897094]
[1646682914365,0.15,37329.0,37317.0,0.34056286]
[1646682914563,0.409102,37328.0,37319.0,0.05]
[1646682914764,0.15,37329.0,37320.0,0.24799963]
[1646682914963,0.13406466,37328.0,37320.0,0.24799963]
[1646682915163,0.476135,37325.0,37317.0,0.34056286]
[1646682915363,0.13406466,37328.0,37317.0,0.4535931]
[1646682915565,0.16339,37331.0,37318.0,0.34056286]
[1646682915766,0.15,37328.0,37319.0,0.05]
[1646682915967,0.15,37328.0,37316.0,0.05]
[1646682916266,0.15,37328.0,37308.0,0.35395286]
[1646682916267,0.05282863,37321.0,37308.0,0.35395286]
[1646682916466,0.183365,37328.0,37311.0,0.003]
[1646682916467,0.1493,37324.0,37311.0,0.003]
[1646682916716,0.15,37312.0,37311.0,0.003]
[1646682916912,0.559102,37312.0,37311.0,0.003]
[1646682917111,0.709102,37312.0,37311.0,0.003]
[1646682917311,0.776163,37312.0,37311.0,0.003]
[1646682917512,0.409102,37310.0,37302.0,0.7347054]
[1646682917713,0.15,37303.0,37298.0,0.0134]
[1646682918012,0.02629,37308.0,37288.0,0.001]
[1646682918013,0.62832647,37299.0,37288.0,0.001]
[1646682918214,0.15,37295.0,37288.0,0.001]
[1646682918415,0.409102,37291.0,37288.0,0.001]
[1646682918614,0.409102,37291.0,37283.0,0.58594957]
[1646682918615,0.07066724,37288.0,37283.0,0.58594957]
[1646682918912,0.05,37288.0,37283.0,0.58594957]
[1646682919109,0.05,37288.0,37284.0,0.34056286]
[1646682919110,0.15,37288.0,37284.0,0.34056286]
[1646682919312,0.1,37288.0,37286.0,0.19472543]
[1646682919511,0.47636928,37289.0,37286.0,0.14472543]
[1646682919710,0.409276,37287.0,37286.0,0.14472543]
[1646682920111,0.05,37288.0,37286.0,0.14472543]
[1646682920371,0.409276,37288.0,37286.0,0.14472543]
[1646682920572,0.004,37287.0,37286.0,0.14472543]
[1646682920980,0.004,37287.0,37283.0,0.85805811]
[1646682921277,0.07109883,37287.0,37283.0,0.85805811]
[1646682921675,0.054,37287.0,37283.0,0.85805811]
[1646682921871,0.05,37287.0,37283.0,0.85805811]
[1646682922076,0.05,37289.0,37284.0,0.91464361]
[1646682922272,0.05014899,37293.0,37284.0,0.91464361]
[1646682922273,0.1,37294.0,37284.0,0.96464361]
[1646682922478,0.00033695,37293.0,37288.0,0.02629]
[1646682922674,0.00033695,37293.0,37292.0,0.6826838]
[1646682922876,0.00033695,37293.0,37292.0,0.7089738]
[1646682923077,0.00033695,37293.0,37292.0,1.29196183]
[1646682923278,0.00033695,37293.0,37292.0,1.49181284]
[1646682923479,0.0134,37311.0,37303.0,0.15970869]
[1646682923677,0.0134,37312.0,37296.0,0.36685286]
[1646682923880,0.06354899,37313.0,37299.0,0.02629]
[1646682924133,0.0134,37313.0,37310.0,0.55575787]
[1646682924322,0.1,37325.0,37313.0,1.62629]
[1646682924523,0.1,37325.0,37316.0,0.02629]
[1646682924720,0.53454899,37335.0,37316.0,0.02629]
[1646682924721,0.1,37334.0,37318.0,0.02629]
[1646682924924,0.01339,37333.0,37332.0,0.18110195]
[1646682925125,0.0999,37339.0,37332.0,0.59037795]
[1646682925126,0.01339,37338.0,37332.0,0.59037795]
[1646682925321,0.01339,37338.0,37321.0,0.09985101]
[1646682925322,0.05014899,37333.0,37321.0,0.1]
[1646682925521,0.34056286,37338.0,37322.0,0.409276]
[1646682925522,0.39071185,37338.0,37322.0,0.409276]
[1646682925723,0.11339,37337.0,37323.0,0.509276]
[1646682925927,0.11339,37337.0,37323.0,0.409276]
[1646682925928,0.01339,37337.0,37323.0,0.409276]
[1646682926121,0.34056286,37342.0,37325.0,0.409276]
[1646682926322,0.34056286,37342.0,37328.0,0.19703253]
[1646682926323,0.05014899,37338.0,37328.0,0.19703253]
[1646682926624,0.11716188,37338.0,37328.0,0.24703253]
[1646682926820,0.01339,37337.0,37328.0,0.24703253]
[1646682927023,0.01339,37337.0,37326.0,0.05]
[1646682927024,0.476291,37336.0,37326.0,0.05]
[1646682927222,0.05014899,37333.0,37320.0,0.1]
[1646682927422,0.384249,37334.0,37319.0,0.1989]
[1646682927423,0.05014899,37329.0,37319.0,0.1989]
[1646682927723,0.28663659,37331.0,37314.0,0.61309]
[1646682927724,0.77815498,37328.0,37314.0,0.01339]
[1646682927961,0.05014899,37322.0,37319.0,0.21534352]
[1646682928162,0.25019,37321.0,37320.0,0.31487233]
[1646682928361,0.05014899,37326.0,37320.0,0.31487233]
[1646682928563,0.05,37325.0,37315.0,0.27016087]
[1646682928761,0.48591219,37328.0,37315.0,0.27016087]
[1646682928963,0.53606118,37328.0,37315.0,0.27016087]
[1646682929165,0.05014899,37324.0,37323.0,0.1]
[1646682929464,0.45942499,37324.0,37323.0,0.1]
[1646682929663,0.409276,37324.0,37323.0,0.1]
[1646682930065,0.50942499,37324.0,37323.0,0.1]
[1646682930265,0.4,37319.0,37317.0,0.27137482]
[1646682931470,0.4,37319.0,37318.0,0.409276]
[1646682932315,0.05014899,37331.0,37321.0,0.409276]
[1646682932512,0.05014899,37331.0,37318.0,0.409276]
[1646682932713,0.11116282,37329.0,37320.0,0.409276]
[1646682932915,0.05014899,37329.0,37319.0,0.05]
[1646682933110,0.05014899,37329.0,37317.0,0.27137482]
[1646682933111,0.05,37329.0,37322.0,0.22033186]
[1646682933512,0.15,37331.0,37318.0,0.409276]
[1646682933713,0.05014899,37329.0,37323.0,0.3122755]
[1646682933913,0.05014899,37329.0,37323.0,0.3122155]
[1646682934112,0.05014899,37329.0,37319.0,0.1]
[1646682934318,0.07340818,37328.0,37319.0,0.1]
[1646682934513,0.05214899,37329.0,37318.0,0.22292089]
[1646682934713,0.002,37329.0,37318.0,0.22292089]
[1646682934915,0.002,37329.0,37327.0,0.29797396]
[1646682935220,0.002,37329.0,37320.0,0.509276]
[1646682935660,0.002,37329.0,37327.0,0.20611078]
[1646682935862,0.05014899,37332.0,37327.0,0.20611078]
[1646682936061,0.05014899,37332.0,37323.0,0.067016]
[1646682936266,0.27629,37334.0,37322.0,0.28289532]
[1646682936465,0.05014899,37330.0,37319.0,0.05]
[1646682936661,0.05014899,37330.0,37321.0,0.05]
[1646682936865,0.05014899,37330.0,37319.0,0.05]
[1646682937164,0.05014899,37330.0,37318.0,0.21399627]
[1646682937363,0.05014899,37324.0,37314.0,0.01339]
[1646682937567,0.409276,37322.0,37314.0,0.01339]
[1646682937763,0.1,37321.0,37314.0,0.01339]
[1646682937966,0.1,37321.0,37299.0,0.6987]
[1646682937967,0.06749289,37309.0,37299.0,0.6987]
[1646682938167,0.06749289,37309.0,37299.0,0.4998]
[1646682938365,0.05014899,37310.0,37301.0,0.29323438]
[1646682938564,0.002,37309.0,37307.0,0.2573525]
[1646682939419,0.002,37309.0,37301.0,0.30663438]
[1646682939618,0.002,37309.0,37298.0,0.0134]
[1646682940019,0.02629,37306.0,37297.0,0.0134]
[1646682940220,0.34416272,37310.0,37293.0,0.00067389]
[1646682940221,0.05014899,37301.0,37293.0,0.00067389]
[1646682940419,0.05,37305.0,37300.0,0.2383926]
[1646682940618,0.05014899,37304.0,37300.0,0.2383926]
[1646682940919,0.05,37305.0,37300.0,0.2383926]
[1646682940920,0.05,37305.0,37303.0,0.22246762]
[1646682941118,0.1,37306.0,37301.0,0.409276]
[1646682941119,0.05,37306.0,37301.0,0.409276]
[1646682941318,0.10014899,37308.0,37301.0,0.409276]
[1646682941516,0.10014899,37308.0,37306.0,0.25512165]
[1646682941517,0.05014899,37308.0,37306.0,0.25512165]
[1646682941720,0.05014899,37309.0,37306.0,0.25512165]
[1646682942125,0.13439207,37315.0,37307.0,0.75343872]
[1646682942330,0.18038135,37323.0,37315.0,1.6]
[1646682942620,0.48,37338.0,37332.0,0.27038468]
[1646682942621,0.06353899,37338.0,37332.0,0.27038468]
[1646682942868,0.05014899,37333.0,37326.0,0.409126]
[1646682943068,0.05014899,37332.0,37323.0,0.05]
[1646682943466,0.05014899,37332.0,37321.0,0.05]
[1646682943867,0.05390371,37329.0,37321.0,0.05]
[1646682944067,0.05014899,37330.0,37321.0,0.17179394]
[1646682944264,0.35928247,37334.0,37322.0,0.28223829]
[1646682944265,0.11339,37334.0,37322.0,0.28223829]
[1646682944469,0.05014899,37328.0,37321.0,0.56595666]
[1646682944670,0.002,37330.0,37322.0,0.409126]
[1646682945269,0.002,37330.0,37325.0,0.409126]
[1646682945468,0.002,37330.0,37328.0,0.23878063]
[1646682945673,0.002,37330.0,37329.0,0.409126]
[1646682945876,0.002,37330.0,37329.0,0.74655458]
[1646682946272,0.002,37330.0,37329.0,0.409126]
[1646682947931,0.1,37334.0,37329.0,0.409126]
[1646682948333,0.1,37334.0,37330.0,0.22407694]
[1646682948533,0.1,37334.0,37331.0,0.409126]
[1646682949847,0.1,37334.0,37331.0,0.342114]
[1646682949848,0.134023,37333.0,37331.0,0.342114]
[1646682950036,0.134023,37333.0,37331.0,0.392114]
[1646682950238,0.129023,37333.0,37331.0,0.392114]
[1646682952560,0.130023,37333.0,37331.0,0.392114]
[1646682953163,0.130023,37333.0,37331.0,0.05]
[1646682953164,0.3364141,37332.0,37331.0,0.05]
[1646682953366,0.3364141,37332.0,37326.0,0.002]
[1646682953367,0.067022,37331.0,37326.0,0.002]
[1646682953561,0.05014899,37329.0,37326.0,0.002]
[1646682953759,0.23418299,37329.0,37326.0,0.002]
[1646682953959,0.23418299,37329.0,37316.0,0.01106028]
[1646682953960,0.184034,37329.0,37319.0,0.28940555]
[1646682954212,0.184034,37329.0,37322.0,0.408969]
[1646682954412,0.067022,37328.0,37322.0,0.408969]
[1646682954819,0.05,37329.0,37322.0,0.408969]
[1646682955021,0.05,37329.0,37322.0,0.4187282]
[1646682955219,0.117007,37332.0,37326.0,0.18783564]
[1646682955413,0.117007,37332.0,37327.0,0.408969]
[1646682955614,0.117007,37332.0,37327.0,0.458969]
[1646682956015,0.116007,37332.0,37329.0,0.408969]
[1646682956219,0.066007,37332.0,37329.0,0.458969]
[1646682956413,0.066007,37332.0,37328.0,0.06701164]
[1646682956618,0.067007,37332.0,37327.0,0.05]
[1646682956817,0.05014899,37328.0,37324.0,0.002]
[1646682957020,0.05014899,37325.0,37324.0,0.002]
[1646682957417,0.1,37326.0,37324.0,0.002]
[1646682957886,0.45911799,37325.0,37314.0,0.42366228]
[1646682958077,0.1,37326.0,37314.0,0.42366228]
[1646682958078,0.067039,37322.0,37314.0,0.42366228]
[1646682958278,0.134075,37322.0,37315.0,0.408969]
[1646682958477,0.134075,37322.0,37316.0,0.408969]
[1646682958478,0.067036,37322.0,37316.0,0.408969]
[1646682958674,0.05,37324.0,37318.0,0.408969]
[1646682958874,0.05,37324.0,37320.0,0.21344126]
[1646682959075,0.20014899,37326.0,37320.0,0.44447162]
[1646682959284,0.067026,37327.0,37326.0,0.408969]
[1646682959482,0.1,37330.0,37326.0,0.408969]
[1646682959678,0.1,37330.0,37326.0,0.458969]
[1646682959878,0.1,37330.0,37326.0,0.47040717]
[1646682960077,0.1,37330.0,37329.0,0.60110673]
[1646682960282,0.1,37333.0,37330.0,0.408969]
[1646682960676,0.1,37334.0,37330.0,0.408969]
[1646682961283,0.408969,37333.0,37329.0,0.65110673]
[1646682961481,0.134052,37332.0,37329.0,0.65110673]
[1646682961913,0.2,37333.0,37330.0,0.408969]
[1646682961914,0.1,37331.0,37330.0,0.408969]
[1646682962114,0.1,37331.0,37330.0,0.74142795]
[1646682962311,0.1,37334.0,37330.0,0.93512261]
[1646682962511,0.1,37334.0,37330.0,0.73080572]
[1646682963014,0.1,37334.0,37330.0,0.864813]
[1646682963209,0.1,37334.0,37331.0,0.05]
[1646682963409,0.1,37334.0,37332.0,0.408969]
[1646682964211,0.167009,37334.0,37332.0,0.408969]
[1646682964812,0.167007,37334.0,37332.0,0.408969]
[1646682965213,0.1,37334.0,37333.0,0.9446831]
[1646682965472,0.0622293,37334.0,37333.0,1.50339966]
[1646682965674,0.05922851,37347.0,37334.0,0.435259]
[1646682965874,0.066987,37345.0,37337.0,0.02629]
[1646682966072,0.05922851,37349.0,37338.0,0.435259]
[1646682966275,2.499,37350.0,37341.0,0.435259]
[1646682966470,2.499,37350.0,37345.0,0.02629]
[1646682966471,1.4998,37350.0,37345.0,0.02629]
[1646682966670,0.5006,37350.0,37349.0,0.02629]
[1646682966871,0.5006,37350.0,37349.0,0.919672]
[1646682967071,0.5006,37350.0,37349.0,0.819672]
[1646682967271,0.5006,37350.0,37349.0,1.19709572]
[1646682967471,0.2,37362.0,37352.0,0.02629]
[1646682967672,0.05014899,37360.0,37353.0,0.47593499]
[1646682967876,0.05014899,37360.0,37351.0,0.0993]
[1646682968075,0.066957,37359.0,37352.0,0.408969]
[1646682968271,0.066973,37357.0,37353.0,0.1]
[1646682968471,0.066973,37357.0,37354.0,0.408969]
[1646682968671,0.066973,37357.0,37353.0,0.15]
[1646682968873,0.066973,37357.0,37351.0,0.0493]
[1646682969124,0.066973,37357.0,37352.0,0.408969]
[1646682969315,0.066973,37357.0,37354.0,0.408969]
[1646682969516,0.066973,37357.0,37354.0,0.458969]
[1646682970114,0.066973,37357.0,37354.0,0.05]
[1646682970315,0.133944,37357.0,37353.0,0.06696848]
[1646682970517,0.133944,37357.0,37354.0,0.408969]
[1646682970916,0.133944,37357.0,37354.0,0.458969]
[1646682971117,0.066971,37357.0,37354.0,0.458969]
[1646682971317,0.066971,37357.0,37354.0,0.67020411]
[1646682971717,0.066971,37357.0,37356.0,0.66668114]
[1646682972322,0.066971,37357.0,37356.0,0.93678983]
[1646682972966,0.333903,37362.0,37356.0,1.28191031]
[1646682972967,0.066948,37360.0,37356.0,1.28191031]
[1646682973166,0.066948,37360.0,37358.0,0.408969]
[1646682973371,0.066948,37360.0,37359.0,0.508789]
[1646682973566,0.20006,37362.0,37359.0,0.8336147]
[1646682973768,0.20006,37362.0,37360.0,0.408969]
[1646682973966,0.20006,37362.0,37361.0,1.04737083]
[1646682974167,0.20006,37362.0,37361.0,1.09737083]
[1646682974564,0.20006,37362.0,37361.0,0.75225035]
[1646682974772,0.19006,37362.0,37361.0,0.77854035]
[1646682974967,0.1998,37372.0,37363.0,0.02629]
[1646682975169,0.629261,37376.0,37366.0,0.435259]
[1646682975170,0.066927,37374.0,37366.0,0.435259]
[1646682975368,0.07505476,37379.0,37376.0,0.18610808]
[1646682975568,0.07505476,37379.0,37377.0,0.408969]
[1646682975970,0.07494708,37379.0,37377.0,0.408969]
[1646682976169,0.11707099,37378.0,37376.0,0.05]
[1646682976373,0.7530624,37377.0,37376.0,0.05]
[1646682976619,0.7530624,37377.0,37372.0,0.001]
[1646682976824,0.7530624,37377.0,37362.0,0.51215108]
[1646682976825,1.6,37372.0,37361.0,0.00957002]
[1646682977024,0.05003948,37362.0,37352.0,0.01358474]
[1646682977226,0.066965,37360.0,37352.0,0.51358474]
[1646682977420,0.16700448,37360.0,37352.0,0.51358474]
[1646682977625,0.1998,37358.0,37354.0,0.06696659]
[1646682977825,0.1998,37358.0,37355.0,0.408969]
[1646682978223,0.26676,37358.0,37355.0,0.408969]
[1646682978820,0.26676,37358.0,37355.0,0.458969]
[1646682979023,0.26676,37358.0,37357.0,0.408969]
[1646682979223,0.26676,37358.0,37357.0,0.458969]
[1646682979623,0.26676,37358.0,37357.0,0.558969]
[1646682979826,0.05003948,37365.0,37359.0,0.06694497]
[1646682980024,0.05003948,37365.0,37360.0,0.408969]
[1646682980222,0.383695,37366.0,37360.0,0.408969]
[1646682980665,0.383695,37366.0,37361.0,0.1]
[1646682980870,0.383695,37366.0,37362.0,0.408969]
[1646682980871,0.066946,37364.0,37362.0,0.408969]
[1646682981270,0.066946,37364.0,37363.0,0.508969]
[1646682981872,0.1,37374.0,37371.0,0.43155744]
[1646682982066,0.4766,37376.0,37372.0,0.408969]
[1646682982265,0.10667339,37379.0,37372.0,0.458969]
[1646682982666,0.066928,37377.0,37373.0,0.01052101]
[1646682982865,0.06649453,37377.0,37374.0,0.408969]
[1646682983263,0.06649453,37377.0,37374.0,0.52589518]
[1646682983464,0.06649453,37377.0,37374.0,0.8684578]
[1646682983671,6e-05,37382.0,37376.0,0.02629]
[1646682983870,6e-05,37382.0,37379.0,0.27675367]
[1646682984128,6e-05,37382.0,37379.0,0.28894107]
[1646682984431,6e-05,37382.0,37379.0,0.46523107]
[1646682984432,0.133885,37382.0,37379.0,0.46523107]
[1646682984630,0.133885,37382.0,37379.0,0.53214367]
[1646682984631,6e-05,37382.0,37379.0,0.53214367]
[1646682985233,6e-05,37382.0,37379.0,0.2291]
[1646682985630,6e-05,37382.0,37379.0,0.1291]
[1646682986132,0.26166539,37381.0,37379.0,0.0669126]
[1646682986330,0.31170487,37381.0,37379.0,0.0669126]
[1646682986532,0.36170487,37381.0,37379.0,0.0669126]
[1646682986729,0.36370487,37381.0,37379.0,0.0669126]
[1646682986934,0.76054502,37380.0,37374.0,0.002]
[1646682987134,0.05003948,37375.0,37374.0,0.002]
[1646682987630,0.05003948,37375.0,37366.0,0.24553925]
[1646682987631,0.14996799,37375.0,37366.0,0.24553925]
[1646682987861,0.10003948,37374.0,37366.0,0.24553925]
[1646682988262,0.08353948,37374.0,37367.0,0.20081699]
[1646682988664,0.1998,37369.0,37367.0,0.20081699]
[1646682988865,0.1998,37369.0,37367.0,0.25081699]
[1646682989067,0.1998,37369.0,37367.0,0.20081699]
[1646682989564,0.1998,37369.0,37367.0,0.30081699]
[1646682989768,0.1998,37369.0,37368.0,0.1]
[1646682989968,0.05003948,37378.0,37368.0,0.1]
[1646682989969,0.066918,37373.0,37368.0,0.1]
[1646682990367,0.066918,37373.0,37369.0,0.19011376]
[1646682990566,0.066918,37373.0,37369.0,0.25356422]
[1646682990768,0.066918,37373.0,37371.0,0.35681431]
[1646682991066,0.1998,37372.0,37371.0,0.40681431]
[1646682991471,0.2498,37372.0,37371.0,0.40681431]
[1646682992333,0.2498,37372.0,37371.0,0.06692532]
[1646682993939,0.2498,37372.0,37368.0,0.30076238]
[1646682993940,0.183891,37371.0,37368.0,0.15]
[1646682994136,0.1998,37370.0,37368.0,0.15]
[1646682994535,0.1998,37370.0,37363.0,0.0104861]
[1646682994737,0.002,37370.0,37366.0,0.30777389]
[1646682994939,0.002,37370.0,37363.0,0.003]
[1646682994940,0.1998,37367.0,37363.0,0.003]
[1646682995138,0.133912,37367.0,37363.0,0.003]
[1646682995366,0.183912,37367.0,37363.0,0.003]
[1646682995764,0.250864,37367.0,37363.0,0.003]
[1646682995965,0.250864,37367.0,37362.0,0.3045171]
[1646682995966,0.1998,37364.0,37362.0,0.3045171]
[1646682996166,0.2498,37364.0,37362.0,0.3045171]
[1646682996767,0.2498,37364.0,37362.0,0.3545171]
[1646682997368,0.33057316,37364.0,37357.0,0.01391966]
[1646682997567,0.33057316,37364.0,37357.0,0.02728966]
[1646682997568,0.16699248,37362.0,37357.0,0.02728966]
[1646682997770,0.316753,37362.0,37357.0,0.01391966]
[1646682997973,0.316753,37362.0,37358.0,0.06694741]
[1646682998170,0.116953,37362.0,37358.0,0.06694741]
[1646682998569,0.116953,37362.0,37359.0,0.1945686]
[1646682998772,0.200865,37365.0,37362.0,0.233906]
[1646682998972,0.05003948,37370.0,37362.0,0.29424645]
[1646682999220,0.1998,37371.0,37363.0,0.066928]
[1646682999418,0.066927,37370.0,37369.0,0.19201511]
[1646683000218,0.133847,37372.0,37369.0,0.19201511]
[1646683000219,7.4e-05,37372.0,37369.0,0.19201511]
[1646683000419,7.4e-05,37372.0,37365.0,0.95216052]
[1646683000616,7.4e-05,37372.0,37366.0,0.02629]
[1646683000819,7.4e-05,37372.0,37368.0,0.13384641]
[1646683001121,0.066927,37370.0,37361.0,0.0493]
[1646683001319,0.066927,37370.0,37366.0,0.17729015]
[1646683001717,0.066927,37370.0,37365.0,0.25158231]
[1646683002320,0.066927,37370.0,37365.0,0.38544337]
[1646683002520,0.066927,37370.0,37366.0,0.02629]
[1646683002723,0.1998,37372.0,37368.0,0.31030572]
[1646683002965,0.1998,37372.0,37370.0,0.34255117]
[1646683003162,0.1998,37372.0,37371.0,0.0493]
[1646683004667,0.58892069,37384.0,37368.0,0.06690869]
[1646683004863,0.066921,37373.0,37369.0,0.34653386]
[1646683005075,0.066921,37373.0,37368.0,0.06690869]
[1646683005461,0.066921,37373.0,37369.0,0.0148715]
[1646683005661,0.066921,37373.0,37368.0,0.41070129]
[1646683005864,0.066924,37376.0,37371.0,0.21353634]
[1646683006065,0.066924,37376.0,37371.0,0.34738822]
[1646683006365,0.066924,37376.0,37371.0,0.13385188]
[1646683006913,0.02629,37375.0,37366.0,0.004]
[1646683007314,0.066945,37372.0,37366.0,0.004]
[1646683008013,0.093235,37372.0,37362.0,0.233906]
[1646683008217,0.22559,37371.0,37362.0,0.233906]
[1646683008413,0.066963,37369.0,37362.0,0.233906]
[1646683008613,0.28812311,37364.0,37362.0,0.233906]
[1646683010576,0.35508611,37364.0,37362.0,0.233906]
[1646683010772,0.36108611,37364.0,37362.0,0.233906]
[1646683011974,0.38378732,37364.0,37362.0,0.233906]
[1646683012377,0.43653696,37364.0,37362.0,0.233906]
[1646683012575,0.38378732,37364.0,37362.0,0.233906]
[1646683012775,0.31682432,37364.0,37362.0,0.233906]
[1646683013575,0.41675283,37364.0,37362.0,0.233906]
[1646683014222,0.06461764,37363.0,37362.0,0.233906]
[1646683014418,0.16454615,37363.0,37362.0,0.233906]
[1646683014619,0.21384615,37363.0,37362.0,0.233906]
[1646683014820,0.15522851,37363.0,37362.0,0.233906]
[1646683015223,0.006,37363.0,37362.0,0.5776986]
[1646683015620,0.006,37363.0,37362.0,0.233906]
[1646683015819,0.006,37363.0,37362.0,0.46888031]
[1646683016021,0.133895,37370.0,37362.0,0.75485966]
[1646683016221,0.066941,37367.0,37362.0,0.51988535]
[1646683016420,0.066941,37367.0,37362.0,0.333906]
[1646683016625,0.133895,37370.0,37362.0,0.333906]
[1646683016626,0.133895,37370.0,37363.0,0.3437926]
[1646683016823,0.60976172,37378.0,37363.0,0.35947974]
[1646683017024,0.60976172,37378.0,37364.0,0.07559]
[1646683017025,0.1999,37378.0,37364.0,0.07559]
[1646683017223,0.1999,37378.0,37370.0,0.1338422]
[1646683017421,0.1999,37378.0,37375.0,0.06692063]
[1646683017624,0.0585919,37379.0,37375.0,0.06692063]
[1646683017865,0.0585919,37379.0,37371.0,0.05]
[1646683018365,0.02629,37378.0,37364.0,0.21412368]
[1646683018566,0.02629,37378.0,37364.0,0.02518202]
[1646683018567,0.07211909,37367.0,37364.0,0.02518202]
[1646683018768,0.27611005,37373.0,37362.0,0.64225425]
[1646683018769,0.30240005,37373.0,37362.0,0.64225425]
[1646683019167,0.30240005,37373.0,37363.0,0.5]
[1646683019364,0.09992851,37371.0,37363.0,0.5]
[1646683019567,0.09992851,37371.0,37364.0,0.18944215]
[1646683019766,0.09992851,37371.0,37363.0,0.5]
[1646683019767,0.1998,37374.0,37370.0,0.22029396]
[1646683019967,0.1998,37374.0,37364.0,0.34274568]
[1646683020563,0.1998,37374.0,37362.0,0.65494763]
[1646683020766,0.28642161,37372.0,37362.0,0.62680263]
[1646683020965,0.28642161,37372.0,37364.0,0.15926048]
[1646683021166,0.28642161,37372.0,37362.0,0.63764369]
[1646683021466,0.066943,37375.0,37362.0,0.77151397]
[1646683021718,0.09992851,37379.0,37368.0,0.32769342]
[1646683021922,0.1,37380.0,37368.0,0.33910096]
[1646683022118,0.08025175,37383.0,37377.0,0.22149867]
[1646683022119,0.000112,37381.0,37377.0,0.22149867]
[1646683022322,0.000112,37381.0,37377.0,0.27149867]
[1646683022822,0.08025175,37383.0,37377.0,0.27149867]
[1646683022823,0.08025175,37383.0,37377.0,0.37149867]
[1646683023020,0.06692,37382.0,37377.0,0.37149867]
[1646683023218,0.000112,37381.0,37377.0,0.37149867]
[1646683023419,0.000112,37381.0,37378.0,0.01042597]
[1646683024020,0.06692,37382.0,37377.0,0.15]
[1646683024223,0.06692,37382.0,37377.0,0.05]
[1646683024421,0.00012459,37381.0,37377.0,0.05]
[1646683024820,0.00012459,37381.0,37378.0,0.01380124]
[1646683025021,0.13397559,37381.0,37377.0,0.05]
[1646683025222,0.066924,37381.0,37377.0,0.05]
[1646683025467,0.066924,37381.0,37377.0,0.04995]
[1646683025664,0.06704859,37381.0,37377.0,0.04995]
[1646683025871,0.06704859,37381.0,37369.0,0.01016208]
[1646683025872,0.23686829,37380.0,37369.0,0.01016208]
[1646683026065,0.23686829,37380.0,37366.0,0.5]
[1646683026266,0.16687751,37378.0,37365.0,0.01263458]
[1646683026465,0.23086641,37373.0,37365.0,0.01263458]
[1646683026666,0.02629,37376.0,37365.0,0.22788519]
[1646683027066,0.066944,37372.0,37365.0,0.29482798]
[1646683027265,0.046944,37372.0,37366.0,0.0999]